fUSD/lending_fUSD_20240912
["ID","MTS","AMOUNT","RATE_DAILY","PERIOD"]
[337774139,1726102234594,-1681.404111,0.000139,2]
[337774140,1726102234609,-362.704451,0.000139,2]
[337774141,1726102234625,-1681.404111,0.000139,2]
[337774142,1726102234640,-362.704451,0.000139,2]
[337774143,1726102234655,-2587.411483,0.000139,2]
[337774144,1726102234670,-2587.411483,0.000139,2]
[337774145,1726102234685,-1531.488191,0.000139,2]
[337774146,1726102234703,-1531.488191,0.000139,2]
[337774147,1726102234718,-212.769664,0.000139,2]
[337774148,1726102234733,-212.769664,0.000139,2]
[337774149,1726102234749,-212.769664,0.000139,2]
[337774150,1726102234764,-212.769664,0.000139,2]
[337774151,1726102234780,-151.0,0.000139,2]
[337774152,1726102234795,-2920.125502,0.000139,2]
[337774153,1726102234809,-2920.125502,0.000139,2]
[337774154,1726102234824,-185.10334,0.000139,2]
[337774155,1726102234838,-185.10334,0.000139,2]
[337774156,1726102234853,-314.362417,0.000139,2]
[337774157,1726102234868,-314.362417,0.000139,2]
[337774158,1726102234883,-185.10334,0.000139,2]
[337774159,1726102234896,-185.10334,0.000139,2]
[337774160,1726102234911,-314.362417,0.000139,2]
[337774161,1726102234927,-314.362417,0.000139,2]
[337774162,1726102234943,-2165.500036,0.000139,2]
[337774163,1726102234958,-2165.500036,0.000139,2]
[337774164,1726102234972,-151.0,0.000139,2]
[337774165,1726102234986,-2165.500036,0.000139,2]
[337774166,1726102235001,-610.824392,0.000139,2]
[337774167,1726102235016,-2165.500036,0.000139,2]
[337774168,1726102235031,-151.0,0.000139,2]
[337774169,1726102235046,-610.824392,0.000139,2]
[337774170,1726102235062,-216.11755,0.000139,2]
[337774171,1726102235076,-216.11755,0.000139,2]
[337774172,1726102235090,-216.11755,0.000139,2]
[337774173,1726102235104,-216.11755,0.000139,2]
[337774174,1726102235118,-500.0,0.000139,5]
[337774175,1726102235135,-1098.008305,0.000139,2]
[337774176,1726102235150,-1098.008305,0.000139,2]
[337774177,1726102235165,-151.0,0.000139,2]
[337774178,1726102235179,-107892.841034,0.000139,2]
[337774179,1726102235194,-151.0,0.000139,2]
[337774180,1726102235208,-152.127251,0.000139,2]
[337774181,1726102235223,-1443.822796,0.000139,2]
[337774182,1726102235238,-151.0,0.000139,2]
[337774183,1726102235254,-761.303012,0.000139,2]
[337774184,1726102235268,-1443.822796,0.000139,2]
[337774185,1726102235284,-172.485838,0.000139,2]
[337774186,1726102235300,-761.303012,0.000139,2]
[337774187,1726102235315,-172.485838,0.000139,2]
[337774188,1726102235330,-151.0,0.000139,2]
[337774189,1726102235345,-151.0,0.000139,2]
[337774190,1726102235359,-151.0,0.000139,2]
[337774191,1726102235373,-256.293388,0.000139,2]
[337774192,1726102235387,-256.293388,0.000139,2]
[337774193,1726102235401,-151.0,0.000139,2]
[337774194,1726102235414,-151.0,0.000139,2]
[337774195,1726102235428,-330.265853,0.000139,2]
[337774196,1726102235443,-330.265853,0.000139,2]
[337774197,1726102235456,-470.829002,0.000139,2]
[337774198,1726102235469,-470.829002,0.000139,2]
[337774199,1726102235483,-151.0,0.000139,2]
[337774200,1726102235497,-6002.49751373,0.000139,2]
[337774201,1726102235511,-151.0,0.000139,2]
[337774202,1726102235527,-151.0,0.000139,2]
[337774203,1726102235542,-151.0,0.000139,2]
[337774204,1726102235558,-695.71,0.00013938,2]
[337774205,1726102235570,-150.0,0.00014008,2]
[337774206,1726102235580,-1537.56130796,0.00014011,2]
[337774207,1726102235589,-278.11751935,0.0001402,2]
[337774208,1726102235605,-10.48248065,0.0001402,2]
[337774209,1726102235614,-288.6,0.0001402,2]
[337774210,1726102235624,-0.90751935,0.0001402,2]
[337774211,1726102235635,-150.09248065,0.0001402,2]
[337774212,1726102235645,-184.431937,0.0001402,2]
[337774213,1726102235655,-800.0,0.000141,5]
[337774214,1726102235664,-155.812302,0.00014168,2]
[337774215,1726102235674,-165.875383,0.00014168,2]
[337774216,1726102235683,-353.35844767,0.000142,5]
[337774217,1726102236385,157.93,0.00010959,2]
[337774265,1726102239713,-10000.0,0.000139,2]
[337774266,1726102239723,-746.64155233,0.000142,5]
[337774267,1726102239732,-1537.56130796,0.00014233,2]
[337774268,1726102239743,-176.759261,0.00014247,2]
[337774269,1726102239753,-255.0,0.00014267,2]
[337774270,1726102239762,-1300.0,0.000143,5]
[337774271,1726102239773,-178.47357185,0.0001435,2]
[337774272,1726102239783,-200.0,0.000144,5]
[337774273,1726102239793,-1537.56130796,0.00014456,2]
[337774275,1726102239803,-150.0,0.00014486,120]
[337774276,1726102239812,-200.0,0.000145,5]
[337774277,1726102239822,-155.812302,0.00014522,2]
[337774278,1726102239831,-200.0,0.000146,5]
[337774279,1726102239842,-281.43,0.00014623,2]
[337774280,1726102239851,-537.63,0.0001466,2]
[337774281,1726102239862,-1537.56130796,0.00014678,2]
[337774282,1726102239871,-200.0,0.000147,5]
[337774283,1726102239881,-288.20623065,0.000148,2]
[337774284,1726102239902,-498.83612415,0.000148,2]
[337774285,1726102239915,-2386.73362271,0.000148,2]
[337774286,1726102239923,-3000.0,0.000148,2]
[337774287,1726102239935,-815.0,0.000148,5]
[337774288,1726102239945,-155.812302,0.00014876,2]
[337774289,1726102239955,-151.0,0.0001489,2]
[337774290,1726102239964,-151.0,0.0001489,2]
[337774291,1726102239973,-228.434422,0.0001489,2]
[337774292,1726102239982,-160.876827,0.0001489,2]
[337774293,1726102239991,-160.876827,0.0001489,2]
[337774294,1726102240001,-13302.25024722,0.000149,2]
[337774295,1726102240011,-165.45272,0.000149,2]
[337774296,1726102240021,-151.0,0.000149,2]
[337774297,1726102240031,-151.0,0.000149,2]
[337774298,1726102240045,-151.0,0.000149,2]
[337774299,1726102240055,-151.0,0.000149,2]
[337774300,1726102240064,-1645.37076,0.000149,2]
[337774301,1726102240074,-1645.37076,0.000149,2]
[337774302,1726102240084,-151.0,0.000149,2]
[337774303,1726102240093,-1537.56130796,0.000149,2]
[337774304,1726102240103,-1098.008305,0.000149,2]
[337774305,1726102240113,-1098.008305,0.000149,2]
[337774306,1726102240122,-151.0,0.000149,2]
[337774307,1726102240131,-151.0,0.000149,2]
[337774308,1726102240140,-1443.822796,0.000149,2]
[337774309,1726102240149,-296.341109,0.000149,2]
[337774310,1726102240159,-761.303012,0.000149,2]
[337774311,1726102240168,-1443.822796,0.000149,2]
[337774312,1726102240177,-172.485838,0.000149,2]
[337774313,1726102240186,-761.303012,0.000149,2]
[337774314,1726102240196,-172.485838,0.000149,2]
[337774315,1726102240207,-151.0,0.000149,2]
[337774316,1726102240216,-151.0,0.000149,2]
[337774317,1726102240226,-151.0,0.000149,2]
[337774318,1726102240236,-256.293388,0.000149,2]
[337774319,1726102240245,-256.293388,0.000149,2]
[337774320,1726102240256,-151.0,0.000149,2]
[337774321,1726102240266,-151.0,0.000149,2]
[337774322,1726102240275,-330.265853,0.000149,2]
[337774323,1726102240286,-330.265853,0.000149,2]
[337774324,1726102240295,-470.829002,0.000149,2]
[337774325,1726102240305,-470.829002,0.000149,2]
[337774326,1726102240315,-151.0,0.000149,2]
[337774327,1726102240324,-339.54092122,0.000149,2]
[337774328,1726102240334,-151.0,0.000149,2]
[337774329,1726102240344,-412.90332203,0.000149,2]
[337774330,1726102240353,-178.47357185,0.000149,2]
[337774331,1726102240362,-151.0,0.000149,2]
[337774332,1726102240372,-152.9,0.000149,31]
[337774333,1726102240381,-152.9,0.000149,31]
[337774334,1726102240390,-152.9,0.000149,31]
[337774335,1726102240400,-152.9,0.000149,31]
[337774336,1726102240409,-152.9,0.000149,31]
[337774337,1726102240419,-152.9,0.000149,31]
[337774338,1726102240430,-152.9,0.000149,31]
[337774339,1726102240439,-500.0,0.00014973,2]
[337774340,1726102240449,-500.0,0.00014973,2]
[337774341,1726102240458,-500.0,0.00014973,2]
[337774342,1726102240467,-165.8036216,0.00014979,2]
[337774343,1726102240476,-165.8036216,0.00014979,2]
[337774344,1726102240486,-5646.3172752,0.00014979,2]
[337774345,1726102240496,-221.94,0.00014981,2]
[337774346,1726102240506,-2093.0,0.00014986,2]
[337774347,1726102240515,-722.0,0.00014986,2]
[337774348,1726102240524,-271.0,0.00014986,2]
[337774349,1726102240534,-151.0,0.00014989,2]
[337774350,1726102240544,-151.0,0.00014989,2]
[337774351,1726102240553,-151.0,0.00014989,2]
[337774352,1726102240563,-390.054924,0.00014989,2]
[337774353,1726102240573,-390.054924,0.00014989,2]
[337774354,1726102240582,-151.0,0.00014989,2]
[337774355,1726102240592,-151.0,0.00014989,2]
[337774356,1726102240601,-166.132004,0.00014989,2]
[337774357,1726102240611,-166.132004,0.00014989,2]
[337774358,1726102240620,-151.0,0.00014989,2]
[337774359,1726102240630,-151.0,0.00014989,2]
[337774360,1726102240641,-151.0,0.00014989,2]
[337774361,1726102240651,-157.648184,0.0001499,2]
[337774362,1726102240660,-157.648184,0.0001499,2]
[337774363,1726102240669,-205.350169,0.0001499,2]
[337774364,1726102240679,-151.0,0.0001499,2]
[337774365,1726102240689,-151.0,0.0001499,2]
[337774366,1726102240701,-151.0,0.0001499,2]
[337774367,1726102240710,-151.0,0.0001499,2]
[337774368,1726102240720,-151.0,0.0001499,2]
[337774369,1726102240730,-151.0,0.0001499,2]
[337774370,1726102240739,-151.0,0.0001499,2]
[337774371,1726102240749,-151.0,0.0001499,2]
[337774372,1726102240758,-151.0,0.0001499,2]
[337774373,1726102240768,-1213.792148,0.0001499,2]
[337774374,1726102240778,-1213.792148,0.0001499,2]
[337774375,1726102240788,-252.910801,0.0001499,2]
[337774376,1726102240798,-151.0,0.0001499,2]
[337774377,1726102240808,-252.910801,0.0001499,2]
[337774378,1726102240818,-251.098285,0.0001499,2]
[337774379,1726102240828,-251.098285,0.0001499,2]
[337774380,1726102240837,-151.0,0.0001499,2]
[337774381,1726102240847,-1278.686536,0.0001499,2]
[337774382,1726102240856,-1645.37076,0.0001499,2]
[337774383,1726102240865,-1645.37076,0.0001499,2]
[337774384,1726102240875,-151.0,0.0001499,2]
[337774385,1726102240885,-151.0,0.0001499,2]
[337774386,1726102240894,-151.0,0.0001499,2]
[337774387,1726102240904,-160.876827,0.0001499,2]
[337774388,1726102240913,-160.876827,0.0001499,2]
[337774389,1726102240922,-314.84026,0.0001499,2]
[337774390,1726102240931,-314.84026,0.0001499,2]
[337774391,1726102240941,-151.0,0.0001499,2]
[337774392,1726102240950,-151.0,0.0001499,2]
[337774393,1726102240959,-212.769664,0.0001499,2]
[337774394,1726102240968,-212.769664,0.0001499,2]
[337774395,1726102240978,-185.10334,0.0001499,2]
[337774396,1726102240987,-314.362417,0.0001499,2]
[337774397,1726102240996,-185.10334,0.0001499,2]
[337774398,1726102241006,-314.362417,0.0001499,2]
[337774399,1726102241015,-2165.500036,0.0001499,2]
[337774400,1726102241024,-2165.500036,0.0001499,2]
[337774401,1726102241034,-216.11755,0.0001499,2]
[337774402,1726102241044,-216.11755,0.0001499,2]
[337774403,1726102241053,-1098.008305,0.0001499,2]
[337774404,1726102241063,-1098.008305,0.0001499,2]
[337774405,1726102241072,-282.83125,0.0001499,2]
[337774406,1726102241082,-151.0,0.0001499,2]
[337774407,1726102241092,-1443.822796,0.0001499,2]
[337774408,1726102241102,-761.303012,0.0001499,2]
[337774409,1726102241112,-1443.822796,0.0001499,2]
[337774410,1726102241122,-172.485838,0.0001499,2]
[337774411,1726102241132,-761.303012,0.0001499,2]
[337774412,1726102241142,-172.485838,0.0001499,2]
[337774413,1726102241152,-151.0,0.0001499,2]
[337774414,1726102241161,-173.780154,0.0001499,2]
[337774415,1726102241171,-151.0,0.0001499,2]
[337774416,1726102241181,-256.293388,0.0001499,2]
[337774417,1726102241190,-256.293388,0.0001499,2]
[337774418,1726102241200,-151.0,0.0001499,2]
[337774419,1726102241210,-151.0,0.0001499,2]
[337774420,1726102241220,-330.265853,0.0001499,2]
[337774421,1726102241230,-330.265853,0.0001499,2]
[337774422,1726102241239,-470.829002,0.0001499,2]
[337774423,1726102241249,-470.829002,0.0001499,2]
[337774424,1726102241259,-151.0,0.0001499,2]
[337774425,1726102241268,-151.0,0.0001499,2]
[337774426,1726102241278,-151.0,0.0001499,2]
[337774427,1726102241287,-151.0,0.00014999,2]
[337774428,1726102241297,-151.0,0.00014999,2]
[337774429,1726102241307,-307.873696,0.00014999,2]
[337774430,1726102241316,-307.873696,0.00014999,2]
[337774431,1726102241326,-151.0,0.00014999,2]
[337774432,1726102241336,-151.0,0.00014999,2]
[337774433,1726102241346,-201.988838,0.00014999,2]
[337774434,1726102241356,-201.988838,0.00014999,2]
[337774435,1726102241365,-151.0,0.00014999,2]
[337774436,1726102241375,-199.621385,0.00014999,2]
[337774437,1726102241385,-199.621385,0.00014999,2]
[337774438,1726102241394,-189.611654,0.00014999,2]
[337774439,1726102241403,-189.611654,0.00014999,2]
[337774440,1726102241413,-379.514941,0.00014999,2]
[337774441,1726102241422,-379.514941,0.00014999,2]
[337774442,1726102241432,-151.0,0.00014999,2]
[337774443,1726102241441,-151.0,0.00014999,2]
[337774444,1726102241451,-1681.404111,0.00014999,2]
[337774445,1726102241460,-362.704451,0.00014999,2]
[337774446,1726102241470,-1681.404111,0.00014999,2]
[337774447,1726102241479,-362.704451,0.00014999,2]
[337774448,1726102241488,-2587.411483,0.00014999,2]
[337774449,1726102241498,-2587.411483,0.00014999,2]
[337774450,1726102241507,-1531.488191,0.00014999,2]
[337774451,1726102241517,-1531.488191,0.00014999,2]
[337774452,1726102241526,-151.0,0.00014999,2]
[337774453,1726102241535,-2920.125502,0.00014999,2]
[337774454,1726102241545,-2920.125502,0.00014999,2]
[337774455,1726102241554,-151.0,0.00014999,2]
[337774456,1726102241564,-610.824392,0.00014999,2]
[337774457,1726102241573,-151.0,0.00014999,2]
[337774458,1726102241582,-610.824392,0.00014999,2]
[337774459,1726102241591,-10006.37709208,0.00014999,3]
[337774460,1726102241600,-151.0,0.00014999,2]
[337774461,1726102241610,-5566.09583628,0.00014999,2]
[337774462,1726102241623,-306.53181999,0.00014999,2]
[337774463,1726102241634,-4127.37234373,0.00014999,2]
[337774464,1726102241644,-5019.92700819,0.00015,2]
[337774465,1726102241653,-47760.82504809,0.00015,2]
[337774466,1726102241717,-569.78816292,0.000139,2]
[337774467,1726102241729,-9430.21183708,0.000139,2]
[337774468,1726102241739,-1498.24174734,0.00015,2]
[337774472,1726102242511,-899.66778141,0.00013125,2]
[337774473,1726102242521,-1129.88830924,0.000149,2]
[337774475,1726102242531,-2010.54778633,0.00014999,2]
[337774476,1726102242553,-7989.45221367,0.00014999,2]
[337774477,1726102242563,-5263.77202011,0.00015,2]
[337774478,1726102242575,-9527.83952349,0.00015,2]
[337774479,1726102242594,-1900.71921864,0.00015,2]
[337774480,1726102242606,-1810.82494388,0.00015,2]
[337774481,1726102242617,-1318.98998532,0.00015,2]
[337774482,1726102242629,-804.92424191,0.00015,2]
[337774525,1726102244776,-444.140585,0.000139,2]
[337774526,1726102244787,-444.140585,0.00014999,2]
[337774527,1726102244797,-6152.37008959,0.00015,2]
[337774528,1726102244808,-643.71140223,0.00015,2]
[337774529,1726102244819,-18885.94068944,0.00015,2]
[337774530,1726102244832,-2865.81931308,0.00015,2]
[337774531,1726102244886,-613.09825755,0.000139,2]
[337774532,1726102244898,-293.75433028,0.000139,2]
[337774533,1726102244909,-607.65619442,0.000139,2]
[337774555,1726102245669,-592.01347765,0.000139,2]
[337774557,1726102245680,-949.23757031,0.000139,2]
[337774560,1726102245730,-829.79596822,0.000139,2]
[337774561,1726102245743,-3975.80907621,0.000139,2]
[337774562,1726102245754,-982.5,0.000139,2]
[337774563,1726102245860,-1156.13512536,0.000139,2]
[337774564,1726102245870,-444.140585,0.000139,2]
[337774565,1726102245879,-422.35,0.0001499,3]
[337774566,1726102245889,-4697.68342454,0.00014999,2]
[337774567,1726102686521,239.21,0.00011849,2]
[337774568,1726102857540,166.16,0.00010959,2]
[337774569,1726102903216,-150.0,0.00012899,2]
[337774570,1726102903239,-300.0,0.00012899,2]
[337774571,1726102903262,-6565.0,0.000129,2]
[337774609,1726103240786,227.24,0.00011525,2]
[337774632,1726103431781,-300.0,0.00012899,2]
[337774634,1726103431790,-136.06621227,0.000129,2]
[337774638,1726103431861,-340.78735789,0.000129,2]
[337774639,1726103431946,-703.37788318,0.000129,2]
[337774640,1726103431957,-59425.41724666,0.000129,2]
[337774641,1726103431967,-323.0638,0.000129,2]
[337774642,1726103431976,-647.697,0.000129,2]
[337774643,1726103431986,-1000.0,0.000129,2]
[337774644,1726103431995,-159.56,0.00012973,2]
[337774645,1726103432005,-611.524,0.0001299,2]
[337774646,1726103432015,-638.97,0.000134,2]
[337774647,1726103432025,-152.86,0.00013416,2]
[337774648,1726103432034,-817.42,0.00013418,2]
[337774649,1726103432044,-250.0,0.00013434,2]
[337774650,1726103432054,-150.0,0.00013488,2]
[337774651,1726103432064,-150.0,0.00013488,2]
[337774652,1726103432074,-150.0,0.00013488,2]
[337774653,1726103432084,-150.0,0.00013488,2]
[337774654,1726103432093,-150.0,0.00013539,2]
[337774655,1726103432103,-150.0,0.00013591,2]
[337774656,1726103432113,-150.0,0.00013643,2]
[337774657,1726103432122,-150.0,0.00013675,2]
[337774658,1726103432131,-150.0,0.00013694,2]
[337774659,1726103432141,-288.11,0.00013694,2]
[337774660,1726103432151,-5971.27,0.00013694,2]
[337774661,1726103432161,-200.0,0.00013699,2]
[337774662,1726103432171,-162.3,0.00013699,2]
[337774664,1726103432180,-514.4,0.000137,2]
[337774665,1726103432190,-250.08,0.00013712,2]
[337774667,1726103432199,-182.58,0.00013712,2]
[337774669,1726103432209,-150.0,0.00013746,2]
[337774671,1726103432219,-150.0,0.00013787,2]
[337774672,1726103432230,-227.24,0.00013789,2]
[337774673,1726103432239,-150.0,0.00013798,2]
[337774674,1726103432249,-150.0,0.00013862,2]
[337774675,1726103432259,-151.0,0.000139,2]
[337774677,1726103432269,-151.0,0.000139,2]
[337774678,1726103432279,-151.0,0.000139,2]
[337774679,1726103432288,-151.0,0.000139,2]
[337774680,1726103432298,-151.0,0.000139,2]
[337774681,1726103432307,-260.755,0.00013936,2]
[337774682,1726103432317,-3795.9502,0.00013936,2]
[337774683,1726103432326,-150.0,0.0001405,2]
[337774684,1726103432335,-150.0,0.00014087,2]
[337774685,1726103432345,-420.0,0.00014147,2]
[337774686,1726103432354,-150.0,0.00014237,2]
[337774687,1726103432364,-150.0,0.00014387,2]
[337774688,1726103432374,-150.0,0.00014424,2]
[337774689,1726103432384,-150.0,0.00014612,2]
[337774690,1726103432394,-150.0,0.00014687,2]
[337774691,1726103432404,-3202.847,0.000147,2]
[337774692,1726103432413,-1685.0112,0.000147,2]
[337774693,1726103432423,-157.52713624,0.00014731,2]
[337774694,1726103432432,-157.52713622,0.00014759,2]
[337774695,1726103432442,-237.73636191,0.00014786,2]
[337774696,1726103432451,-157.52713622,0.00014787,2]
[337774697,1726103432460,-159.083335,0.00014795,2]
[337774698,1726103432470,-1000.0,0.00014799,2]
[337774699,1726103432479,-2500.0,0.00014799,2]
[337774700,1726103432488,-150.0,0.00014799,2]
[337774701,1726103432498,-3000.0,0.000148,2]
[337774702,1726103432509,-57897.99999999,0.000148,2]
[337774703,1726103432518,-157.52713622,0.00014816,2]
[337774704,1726103432528,-150.0,0.00014831,2]
[337774705,1726103432537,-157.52713622,0.00014844,2]
[337774706,1726103432547,-4644.06375209,0.0001485,2]
[337774707,1726103432557,-157.52713622,0.00014872,2]
[337774708,1726103432568,-169.5838256,0.00014886,2]
[337774709,1726103432577,-24017.318,0.00014899,2]
[337774710,1726103432587,-13130.34572893,0.00014899,2]
[337774711,1726103432645,-3386.26057107,0.00014899,2]
[337774712,1726103432655,-442.25802377,0.00014899,2]
[337774715,1726103437857,-747.57427623,0.00014899,2]
[337774716,1726103437867,-551.69258707,0.00014899,2]
[337774717,1726103437876,-3276.31875907,0.000149,2]
[337774718,1726103437886,-157.52713622,0.000149,2]
[337774719,1726103437895,-150.0,0.00014952,2]
[337774720,1726103437905,-160.06545027,0.00014973,2]
[337774721,1726103437915,-500.0,0.00014973,2]
[337774722,1726103437924,-491.8074183,0.00014973,2]
[337774723,1726103437934,-500.0,0.00014973,2]
[337774724,1726103437943,-274.91899362,0.00014978,2]
[337774725,1726103437952,-556.06335157,0.00014978,2]
[337774726,1726103437962,-500.0,0.00014978,2]
[337774727,1726103437971,-500.0,0.00014978,2]
[337774728,1726103437981,-478.69483472,0.00014978,2]
[337774729,1726103437991,-141513.073487,0.00014979,2]
[337774730,1726103438002,-150.0,0.00014986,2]
[337774731,1726103438013,-150.0,0.00014986,2]
[337774732,1726103438030,-150.0,0.00014986,2]
[337774733,1726103438039,-57207.50276926,0.00014989,2]
[337774734,1726103438070,-1209.91673679,0.00014989,2]
[337774735,1726103438086,-275.96458678,0.00014989,2]
[337774736,1726103438118,-3912.37242861,0.00014989,2]
[337774737,1726103438131,-310.24010705,0.00014989,2]
[337774738,1726103438151,-515.77090682,0.00014989,2]
[337774739,1726103438180,-306.42367944,0.00014989,2]
[337774743,1726103439784,-2704.09211514,0.00014989,2]
[337774744,1726103439891,-3.70770203,0.00014989,2]
[337774747,1726103440044,-1956.57232298,0.00014989,2]
[337774770,1726103445924,-321.5446068,0.00014893,2]
[337774771,1726103445934,-114.39414006,0.00014897,2]
[337774772,1726103445999,-207.15046672,0.00014897,2]
[337774773,1726103446009,-179.18953328,0.00014973,2]
[337774774,1726103446022,-320.81046672,0.00014973,2]
[337774775,1726103446031,-1586.7265387,0.00014989,2]
[337774776,1726103446200,-1203.491268,0.00014989,2]
[337774786,1726104355029,21337.35591474,6.94e-05,2]
[337774796,1726104462320,204.51,0.00011593,2]
[337774833,1726104632228,-312.02099594,0.0001274,2]
[337774834,1726104632245,-177.19800406,0.0001274,2]
[337774835,1726104632262,-159.56,0.0001274,2]
[337774836,1726104632275,-321.54460678,0.000129,2]
[337774837,1726104632289,-157.75317637,0.000129,2]
[337774838,1726104632306,-272.1846872,0.000129,2]
[337774843,1726104638000,-3619.64293643,0.000129,2]
[337774845,1726104638010,-166.57,0.0001299,2]
[337774846,1726104638020,-281.80455087,0.00012999,2]
[337774847,1726104638029,-300.0,0.00012999,2]
[337774848,1726104638038,-150.0,0.00012999,2]
[337774849,1726104638048,-606.72493333,0.00013,2]
[337774850,1726104638333,-13414.21882922,0.00013,2]
[337774851,1726104638344,-2145.58688406,0.00013,2]
[337774852,1726104638356,-4007.59997,0.00013,2]
[337774853,1726104638366,-2424.99999999,0.00013,2]
[337774953,1726104640123,-722.86672439,0.00013,2]
[337774954,1726104640136,-360.35525635,0.00013,2]
[337774955,1726104640147,-337.02438696,0.00013,2]
[337774956,1726104640158,-3818.74563682,0.00013,2]
[337774957,1726104640497,-5598.27589607,0.00013,2]
[337775274,1726104643963,-130027.03069797,0.00013,2]
[337775276,1726104643974,-5648.76113986,0.00013,2]
[337775549,1726104646293,-980.18249376,0.00013,2]
[337775553,1726104646305,-5281.48734291,0.00013,2]
[337775575,1726104665547,185.22953854,6.781e-05,7]
[337775581,1726105031469,194.28,0.00010876,2]
[337775582,1726105266675,2000.0,0.00012,2]
[337775583,1726105514309,4800.0,0.00011,2]
[337775601,1726105546716,4800.0,0.00012,2]
[337775602,1726105604907,157.85,0.00010959,2]
[337775603,1726105620461,1000.0,0.00012,2]
[337775667,1726105735592,184.56,0.00010391,2]
[337775668,1726105755043,4400.0,0.00012,2]
[337775669,1726105766009,4400.0,0.00012,2]
[337775670,1726105779309,4400.0,0.00012,2]
[337775671,1726105817525,4400.0,0.00012,2]
[337775672,1726105825443,4400.0,0.00012,2]
[337775684,1726105832378,-567.14,0.00012265,2]
[337775685,1726105832390,-2416.63798764,0.00012265,2]
[337775686,1726105832401,-598.97184433,0.00012265,2]
[337775687,1726105832412,-541.0092199,0.00012265,2]
[337775688,1726105832424,-792.5901174,0.00012265,2]
[337775689,1726105832653,-1974.8225,0.00012265,2]
[337775690,1726105832665,-1069.61818392,0.00012265,2]
[337775691,1726105832721,-5045.81686439,0.00012265,2]
[337775692,1726105832734,-2613.10872722,0.00012265,2]
[337775693,1726105832746,-542.67878054,0.00012265,2]
[337775694,1726105832757,-542.35987574,0.00012265,2]
[337775695,1726105832768,-261.39657885,0.00012265,2]
[337775696,1726105832780,-3831.16040795,0.00012265,2]
[337775697,1726105834193,4400.0,0.00012,2]
[337775700,1726105838255,-3102.68891212,0.00012265,2]
[337775701,1726105838265,-250.0,0.00012328,2]
[337775702,1726105838275,-1000.0,0.00012334,2]
[337775703,1726105838285,-169.36,0.00012335,2]
[337775704,1726105838296,-297.19596341,0.00012628,2]
[337775705,1726105838305,-184.56,0.00012655,2]
[337775706,1726105838314,-902.82593143,0.000127,2]
[337775707,1726105838325,-1756.17406857,0.000127,2]
[337775708,1726105838335,-150.0,0.00012795,2]
[337775709,1726105838344,-160.66300227,0.00012795,2]
[337775710,1726105838354,-406.717,0.00012795,2]
[337775711,1726105838363,-163.48511988,0.000128,2]
[337775712,1726105838373,-499.99,0.000128,2]
[337775713,1726105838383,-63.78148961,0.00012825,2]
[337775714,1726105838396,-89.11851039,0.00012825,2]
[337775715,1726105838405,-625.1681976,0.00012827,2]
[337775716,1726105838455,-173.86425627,0.00012827,2]
[337775717,1726105838465,-150.0,0.00012899,2]
[337775718,1726105838475,-1225.56392573,0.000129,2]
[337775719,1726105838489,-5841.00021091,0.000129,2]
[337775720,1726105838500,-4642.69216336,0.000129,2]
[337775721,1726105838509,-3518.86016473,0.000129,2]
[337775722,1726105838521,-990.63368508,0.000129,2]